bitfinex-derivatives/quotes_ETHF0:USTF0_20230702
["timestamp","ask_amount","ask_price","bid_price","bid_amount"]
[1688311976601,4.99236465,1911.3,1911.0,0.78488]
[1688311976894,5.00021333,1911.3,1911.1,5.49818865]
[1688311977096,5.00021333,1911.3,1911.1,5.784905]
[1688311977294,5.00021333,1911.3,1911.1,6.098865]
[1688311978197,5.00021333,1911.3,1911.1,11.098865]
[1688311978791,4.71349698,1911.3,1911.1,12.45907741]
[1688311978994,0.32177868,1911.3,1911.1,7.45907741]
[1688311979293,0.32177868,1911.3,1911.2,3.2078]
[1688311979498,0.60849503,1911.3,1911.2,0.31395]
[1688311980601,0.32177868,1911.3,1911.2,0.31395]
[1688311980790,0.60849503,1911.3,1911.2,0.31395]
[1688311980995,0.60849503,1911.3,1911.1,0.60067635]
[1688311981598,0.60849503,1911.3,1911.1,5.60067635]
[1688311981894,0.60849503,1911.3,1911.1,5.28671635]
[1688311982094,0.60849503,1911.3,1911.1,5.60067635]
[1688311982095,0.32177868,1911.3,1911.1,5.60067635]
[1688311982299,0.32177868,1911.3,1911.2,5.59505193]
[1688311982703,0.32177868,1911.3,1911.2,3.80285193]
[1688311982894,0.03660685,1911.3,1911.2,5.18105193]
[1688311983093,0.31393,1911.3,1911.2,10.18105193]
[1688311984607,0.00784826,1911.4,1911.2,10.18105193]
[1688311984805,0.00784826,1911.4,1911.3,8.07651635]
[1688311984999,0.15025371,1911.4,1911.3,8.39044635]
[1688311985210,0.15025371,1911.4,1911.3,14.15075314]
[1688311985702,0.46416371,1911.4,1911.3,14.15075314]
[1688311988106,0.75088006,1911.4,1911.3,8.39044635]
[1688311988300,0.75088006,1911.4,1911.3,0.28671635]
[1688311988508,0.75088006,1911.4,1911.1,0.31395]
[1688311988805,3.81627461,1911.4,1911.1,6.03907515]
[1688311988998,3.81627461,1911.4,1911.1,11.32017708]
[1688311989396,0.31394,1911.2,1911.1,6.00622708]
[1688311989603,0.31394,1911.2,1911.1,6.60690343]
[1688311989804,0.31394,1911.2,1911.1,11.60690343]
[1688311990906,0.31394,1911.2,1911.1,12.0316949]
[1688311991506,0.31394,1911.2,1911.1,6.30656975]
[1688311991702,0.31394,1911.2,1911.1,0.71150782]
[1688311992107,0.31394,1911.2,1911.1,0.73875147]
[1688311992310,0.31394,1911.2,1911.1,0.71150782]
[1688311992311,0.60065635,1911.2,1911.1,0.71150782]
[1688311992503,0.31394,1911.2,1911.1,0.73875147]
[1688311992709,0.31394,1911.2,1911.1,5.34775147]
[1688311992914,0.31394,1911.2,1911.1,10.63446782]
[1688311993107,0.31394,1911.2,1911.1,5.63446782]
[1688311994110,0.60065635,1911.2,1911.1,5.32050782]
[1688311994311,0.60065635,1911.2,1911.1,0.42479147]
[1688311994813,0.60065635,1911.2,1911.1,0.31396]
[1688311995016,0.31394,1911.2,1911.1,0.31396]
[1688311995219,0.31394,1911.2,1911.1,10.19867635]
[1688311996519,0.94968826,1911.4,1911.3,5.0]
[1688311996722,0.94968826,1911.4,1911.3,10.46774828]
[1688311997016,0.31388,1911.7,1911.5,5.0]
[1688311997221,0.78471,1911.7,1911.6,0.56781828]
[1688311997616,0.78471,1911.7,1911.6,0.88169828]
[1688311997918,0.94162,1911.9,1911.7,5.0]
[1688311998120,0.94162,1911.9,1911.8,4.91685]
[1688311998316,0.94162,1911.9,1911.8,11.18837127]
[1688311998523,22.47468601,1912.0,1911.8,11.18837127]
[1688311998715,22.47468601,1912.0,1911.9,5.0]
[1688311998925,22.76140236,1912.0,1911.9,5.31383]
[1688312000014,22.47468601,1912.0,1911.9,5.31383]
[1688312000721,0.31378,1912.3,1912.2,5.0]
[1688312000932,0.31378,1912.3,1912.2,10.47959828]
[1688312001426,0.31378,1912.3,1912.2,16.3135887]
[1688312001728,0.78443,1912.5,1912.4,5.0]
[1688312001922,0.78443,1912.5,1912.4,10.45256828]
[1688312002726,0.32373,1912.6,1912.4,10.45256828]
[1688312003018,0.01,1912.6,1912.5,5.64233399]
[1688312003221,0.01,1912.6,1912.5,5.95606399]
[1688312005128,0.01,1912.6,1912.5,10.53406399]
[1688312005317,0.31363,1913.2,1913.0,5.31365]
[1688312005514,0.31363,1913.2,1913.1,4.91663]
[1688312005721,0.60034635,1913.2,1913.1,5.48444828]
[1688312005925,0.31363,1913.2,1913.1,5.48444828]
[1688312006827,2.01695938,1913.3,1913.2,5.0]
[1688312007022,2.33055938,1913.3,1913.2,5.31362]
[1688312007222,2.01695938,1913.3,1913.2,9.89462]
[1688312007721,2.33055938,1913.3,1913.2,9.89462]
[1688312007924,2.61727573,1913.3,1913.2,9.89462]
[1688312008121,2.61727573,1913.3,1913.2,5.0]
[1688312008518,0.60031635,1913.3,1913.2,5.0]
[1688312008725,0.60031635,1913.3,1913.2,5.31362]
[1688312011127,0.60031635,1913.3,1913.2,5.0]
[1688312011321,1.33995973,1913.3,1913.2,5.0]
[1688312011522,1.33995973,1913.3,1913.2,5.31362]
[1688312011928,1.05324338,1913.3,1913.2,10.17133635]
[1688312014127,1.33995973,1913.3,1913.2,9.88462]
[1688312014433,1.33995973,1913.3,1913.1,0.79191005]
[1688312014621,0.88110412,1913.2,1913.1,0.00784005]
[1688312014825,4.8320478,1913.2,1913.1,0.00784005]
[1688312015028,4.8320478,1913.2,1913.1,1e-08]
[1688312015029,9.4220478,1913.2,1913.1,1e-08]
[1688312015423,9.4220478,1913.2,1912.6,0.31371]
[1688312015620,0.31368,1912.8,1912.6,0.31371]
[1688312015830,0.31372,1912.6,1912.5,0.31373]
[1688312016021,0.90368945,1912.6,1912.5,0.60044635]
[1688312016230,0.90368945,1912.6,1912.5,5.19844635]
[1688312017441,0.90368945,1912.6,1912.4,0.43393758]
[1688312017442,1.1904058,1912.6,1912.4,0.43393758]
[1688312017627,0.31373,1912.5,1912.4,0.74768758]
[1688312017835,0.31373,1912.5,1912.4,0.60830928]
[1688312018227,0.60044635,1912.5,1912.4,0.00784293]
[1688312018435,0.31373,1912.5,1912.4,0.29455928]
[1688312018630,0.31373,1912.5,1912.4,0.00784293]
[1688312018934,0.31373,1912.5,1912.4,0.29455928]
[1688312019324,0.31373,1912.5,1912.4,0.60830928]
[1688312019533,0.90368945,1912.6,1912.4,14.24037135]
[1688312019742,0.17436945,1912.6,1912.5,14.47210193]
[1688312019938,0.49248365,1912.6,1912.5,14.78583193]
[1688312020237,0.00783395,1912.7,1912.5,20.44365249]
[1688312020440,0.00783395,1912.7,1912.6,3.2078]
[1688312020638,0.00783395,1912.7,1912.6,3.80823635]
[1688312020834,0.00783395,1912.7,1912.6,9.72318217]
[1688312021234,0.31365,1913.1,1912.9,5.0]
[1688312021536,0.94088,1913.4,1913.3,5.3136]
[1688312021726,0.94088,1913.4,1913.3,5.59470193]
[1688312021727,1.22759635,1913.4,1913.3,5.59470193]
[1688312021931,1.22759635,1913.4,1913.3,11.63007938]
[1688312022738,4.43539635,1913.4,1913.1,4.598]
[1688312022948,3.2078,1913.2,1913.0,0.31365]
[1688312023241,1.16784047,1913.1,1912.9,10.39316]
[1688312023537,3.2078,1913.0,1912.7,5.37019]
[1688312023841,3.2078,1913.0,1912.8,0.28671635]
[1688312023842,1.16787047,1912.9,1912.8,0.28671635]
[1688312024138,0.31367,1912.9,1912.8,0.60040635]
[1688312024334,0.60038635,1912.9,1912.8,0.31369]
[1688312025034,0.60038635,1912.9,1912.8,0.60040635]
[1688312025341,0.31367,1912.9,1912.8,0.60040635]
[1688312025536,0.78418,1913.0,1912.9,5.0]
[1688312025537,0.31365,1913.0,1912.9,5.0]
[1688312025729,0.31366,1913.1,1912.9,0.59477193]
[1688312025730,0.31365,1913.1,1912.9,0.59477193]
[1688312025938,0.31361,1913.3,1913.2,5.0]
[1688312026136,0.94091,1913.4,1913.2,10.39302]
[1688312026342,0.3136,1913.3,1913.2,10.67412193]
[1688312026831,0.3136,1913.3,1913.2,10.96083828]
[1688312027341,1.06952074,1913.3,1913.2,10.96083828]
[1688312028539,1.06952074,1913.3,1913.1,4.582]
[1688312028540,1.35623709,1913.3,1913.1,4.582]
[1688312028839,1.35623709,1913.3,1913.0,0.94096]
[1688312028840,1.35623709,1913.3,1913.0,0.31365]
[1688312029038,0.31364,1913.1,1913.0,0.31365]
[1688312029235,1.24539338,1913.1,1913.0,0.31365]
[1688312029734,0.95867703,1913.1,1913.0,0.60036635]
[1688312030138,0.25053703,1913.1,1913.0,14.43035075]
[1688312030337,0.94091,1913.4,1913.2,5.3136]
[1688312030338,0.31361,1913.3,1913.2,5.3136]
[1688312030533,1.02140858,1913.3,1913.2,10.48541828]
[1688312030734,1.02140858,1913.3,1913.2,11.32751603]
[1688312030735,0.70779858,1913.3,1913.2,11.32751603]
[1688312031133,22.46658,1913.5,1913.4,5.31359]
[1688312031340,22.46658,1913.5,1913.4,10.19830635]
[1688312031740,22.153,1913.5,1913.4,15.95456222]
[1688312031936,22.43971635,1913.5,1913.4,15.38674394]
[1688312032232,22.153,1913.5,1913.4,15.67346029]
[1688312032637,22.153,1913.5,1913.4,18.88126029]
[1688312032835,0.31356,1913.6,1913.4,18.88126029]
[1688312033037,0.31356,1913.7,1913.6,5.0]
[1688312033245,0.31356,1913.7,1913.6,5.60026635]
[1688312033436,0.31356,1913.7,1913.6,11.3768214]
[1688312034444,0.41856,1913.7,1913.6,6.0632714]
[1688312034637,0.70527635,1913.7,1913.6,0.31355]
[1688312035242,0.70527635,1913.7,1913.5,5.37373842]
[1688312035435,3.91307635,1913.7,1913.5,0.00783842]
[1688312035635,0.88103412,1913.6,1913.5,0.00783842]
[1688312036347,0.31355,1913.6,1913.5,10.17912477]
[1688312036945,0.7839,1913.7,1913.5,10.17912477]
[1688312037141,0.7839,1913.7,1913.6,4.581]
[1688312037335,0.7839,1913.7,1913.6,5.17565193]
[1688312037742,1.7796197,1913.7,1913.6,5.17565193]
[1688312037944,1.49290335,1913.7,1913.6,5.17565193]
[1688312038647,1.7796197,1913.7,1913.6,5.17565193]
[1688312038841,1.49290335,1913.7,1913.6,5.17565193]
[1688312039341,1.7796197,1913.7,1913.6,0.31355]
[1688312040144,1.49290335,1913.7,1913.6,4.88455]
[1688312040434,1.49290335,1913.7,1913.6,5.17126635]
[1688312040840,1.49290335,1913.7,1913.6,10.94127187]
[1688312041648,1.69468931,1913.7,1913.6,10.94127187]
[1688312041946,1.98140566,1913.7,1913.6,4.88455]
[1688312042744,5.29420566,1913.7,1913.6,4.571]
[1688312042943,5.29420566,1913.7,1913.5,0.00783842]
[1688312043142,0.56748412,1913.6,1913.5,0.00783842]
[1688312043447,6.19997587,1913.6,1913.5,0.00783842]
[1688312044747,1.59097587,1913.6,1913.5,0.00783842]
[1688312045341,1.59097587,1913.6,1913.5,0.29455477]
[1688312045542,1.02349175,1913.6,1913.5,11.29716285]
[1688312045746,1.02349175,1913.6,1913.5,15.87916285]
[1688312046051,1.02349175,1913.6,1913.5,16.1658792]
[1688312046243,1.3102081,1913.6,1913.5,10.19012477]
[1688312046442,1.3102081,1913.6,1913.5,0.00783842]
[1688312050147,1.02349175,1913.6,1913.5,0.29455477]
[1688312050345,1.02349175,1913.6,1913.5,10.58179511]
[1688312050543,1.02349175,1913.6,1913.5,5.21712477]
[1688312052041,1.3102081,1913.6,1913.5,5.21712477]
[1688312052448,1.3102081,1913.6,1913.5,0.00783842]
[1688312054050,3.99948727,1913.6,1913.5,0.00783842]
[1688312054752,30.74248727,1913.6,1913.5,0.00783842]
[1688312054956,31.98229118,1913.6,1913.0,9.604]
[1688312055164,3.2078,1913.1,1913.0,9.604]
[1688312055358,4.37563047,1913.1,1913.0,9.604]
[1688312056354,4.97735424,1913.1,1913.0,9.604]
[1688312056556,4.97735424,1913.1,1913.0,9.91765]
[1688312056755,0.91535377,1913.1,1913.0,10.20436635]
[1688312058754,1.20207012,1913.1,1913.0,9.89071635]
[1688312058954,1.20207012,1913.1,1913.0,9.604]
[1688312059555,1.20207012,1913.1,1913.0,4.604]
[1688312059556,4.40987012,1913.1,1913.0,4.604]
[1688312059951,4.40987012,1913.1,1912.9,0.00784088]
[1688312060156,0.56748412,1913.0,1912.9,0.00784088]
[1688312060357,0.88113412,1913.0,1912.9,0.00784088]
[1688312063662,3.58588155,1913.0,1912.9,0.00784088]
[1688312064556,0.28671635,1912.9,1912.5,4.598]
[1688312064871,0.31371,1912.6,1912.5,4.91173]
[1688312065063,0.31371,1912.6,1912.5,5.19844635]
[1688312065258,0.31371,1912.6,1912.5,5.62042486]
[1688312065767,1.16791047,1912.6,1912.5,5.01997851]
[1688312066365,1.16791047,1912.6,1912.5,5.30669486]
[1688312066560,1.16791047,1912.6,1912.5,5.01997851]
[1688312067762,1.16791047,1912.6,1912.4,0.00784293]
[1688312068058,0.31375,1912.4,1912.1,4.604]
[1688312068262,0.31375,1912.4,1911.9,4.571]
[1688312068263,4.37576047,1912.3,1911.9,4.571]
[1688312068567,3.2078,1912.1,1911.8,5.01599017]
[1688312068766,1.16801047,1912.0,1911.8,5.01599017]
[1688312069058,1.16801047,1912.0,1911.8,4.604]
[1688312071364,0.14601271,1911.9,1911.8,4.604]
[1688312071569,0.45984271,1911.9,1911.8,4.604]
[1688312072068,0.45984271,1911.9,1911.8,4.89071635]
[1688312072663,0.45984271,1911.9,1911.8,8.41236635]
[1688312072866,0.45984271,1911.9,1911.8,14.07617448]
[1688312074058,0.74655906,1911.9,1911.8,4.89071635]
[1688312074271,0.45984271,1911.9,1911.8,11.05806022]
[1688312076268,22.4668,1912.1,1912.0,9.609]
[1688312076575,22.4668,1912.1,1912.0,16.42480747]
[1688312077168,22.75351635,1912.1,1912.0,15.85698919]
[1688312077465,22.75351635,1912.1,1912.0,16.14370554]
[1688312077862,22.4668,1912.1,1912.0,20.72470554]
[1688312078262,22.153,1912.1,1912.0,20.72470554]
[1688312081374,22.4668,1912.1,1912.0,20.72470554]
[1688312083380,22.75351635,1912.1,1912.0,20.72470554]
[1688312083676,22.75351635,1912.1,1912.0,20.43798919]
[1688312083879,22.86019323,1912.1,1912.0,20.72470554]
[1688312084780,22.86019323,1912.1,1912.0,14.44470554]
[1688312084973,22.86019323,1912.1,1912.0,14.15798919]
[1688312085775,22.86019323,1912.1,1912.0,8.22381]
[1688312086478,22.86019323,1912.1,1912.0,8.65062517]
[1688312087882,22.57347688,1912.1,1912.0,8.93734152]
[1688312088995,22.86019323,1912.1,1912.0,8.93734152]
[1688312089181,22.86019323,1912.1,1912.0,8.65062517]
[1688312090476,22.86019323,1912.1,1912.0,8.33681517]
[1688312092390,22.86019323,1912.1,1912.0,8.65062517]
[1688312094085,22.57347688,1912.1,1912.0,8.93734152]
[1688312094893,22.86019323,1912.1,1912.0,8.93734152]
[1688312095190,22.86019323,1912.1,1912.0,8.65062517]
[1688312096888,22.57347688,1912.1,1912.0,14.95457872]
[1688312097091,22.57347688,1912.1,1912.0,16.31494448]
[1688312097294,22.25967688,1912.1,1912.0,16.31494448]
[1688312098789,0.10667688,1912.1,1912.0,18.92956691]
[1688312098994,0.94133,1912.5,1912.0,18.92956691]
[1688312098995,0.00784293,1912.7,1912.6,5.0]
[1688312099203,3.4895678,1913.0,1912.8,5.0]
[1688312099204,0.78427,1913.0,1912.8,5.0]
[1688312099488,0.61591165,1913.0,1912.9,3.22367]
[1688312100102,8.99387,1913.2,1913.0,5.0]
[1688312100288,8.99387,1913.2,1913.0,5.78409]
[1688312100289,0.00784129,1913.1,1913.0,5.78409]
[1688312100488,0.00784129,1913.1,1913.0,9.28090828]
[1688312100697,0.00784129,1913.1,1913.0,9.54108645]
[1688312101191,0.00784129,1913.1,1913.0,15.67288645]
[1688312101489,0.51696321,1913.1,1913.0,15.67288645]
[1688312101687,0.00784129,1913.1,1913.0,15.67288645]
[1688312101883,0.41649353,1913.1,1913.0,15.67288645]
[1688312102088,0.78399,1913.4,1913.3,5.0]
[1688312102285,1.2695227,1913.4,1913.3,8.79141828]
[1688312102495,1.2695227,1913.4,1913.3,14.34213461]
[1688312103211,33.33239,1913.6,1913.5,5.0]
[1688312103212,27.62125,1913.6,1913.5,5.0]
[1688312103393,5.1547,1913.6,1913.5,8.79138828]
[1688312103583,5.46825,1913.6,1913.5,8.79138828]
[1688312103891,5.75496635,1913.6,1913.5,14.5707395]
[1688312104191,5.75496635,1913.6,1913.5,14.85745585]
[1688312104397,5.46825,1913.6,1913.5,14.85745585]
[1688312104695,5.46825,1913.6,1913.5,8.79138828]
[1688312104892,5.46825,1913.6,1913.5,14.75040247]
[1688312105992,5.75496635,1913.6,1913.5,14.75040247]
[1688312106395,5.46825,1913.6,1913.5,14.75040247]
[1688312106698,5.75496635,1913.6,1913.5,14.18258419]
[1688312107596,5.46825,1913.6,1913.5,14.46930054]
[1688312108501,5.1547,1913.6,1913.5,14.46930054]
[1688312109093,0.31355,1913.8,1913.7,5.0]
[1688312109292,0.04300708,1914.0,1913.8,0.28110193]
[1688312109498,0.04300708,1914.0,1913.9,7.917]
[1688312109499,0.35650708,1914.0,1913.9,7.917]
[1688312109808,0.35650708,1914.0,1913.9,8.51721635]
[1688312109991,0.64322343,1914.0,1913.9,8.51721635]
[1688312110195,0.64322343,1914.0,1913.9,8.2305]
[1688312110890,0.64322343,1914.0,1913.9,8.51721635]
[1688312111295,0.64322343,1914.0,1913.9,8.2305]
[1688312111492,0.64322343,1914.0,1913.8,1.07269913]
[1688312111493,0.64322343,1914.0,1913.8,2.9178372]
[1688312111796,0.64322343,1914.0,1913.9,5.0]
[1688312112198,1.21070755,1914.0,1913.8,2.9178372]
[1688312112496,1.21070755,1914.0,1913.9,5.0]
[1688312113594,4.41850755,1914.0,1913.8,2.9178372]
[1688312113798,7.34750755,1914.0,1913.8,0.0078372]
[1688312113989,7.34750755,1914.0,1913.7,5.0]
[1688312114796,7.34750755,1914.0,1913.7,5.31354]
[1688312115095,7.35533792,1914.0,1913.7,5.0078376]
[1688312115610,5.88099133,1914.1,1913.9,7.929]
[1688312115891,5.88099133,1914.1,1914.0,3.19810193]
[1688312116090,23.09347,1914.3,1914.0,9.34473893]
[1688312116298,23.09347,1914.3,1914.2,3.24245]
[1688312116487,23.38018635,1914.3,1914.2,2.929]
[1688312116690,23.38018635,1914.3,1914.1,11.43127]
[1688312117099,23.09347,1914.3,1914.1,11.43127]
[1688312117301,23.09347,1914.3,1914.2,9.08149726]
[1688312117598,23.09347,1914.3,1914.2,3.51016635]
[1688312117895,23.09347,1914.3,1914.2,3.79126828]
[1688312118197,20.7611962,1914.3,1914.2,9.34778728]
[1688312118398,19.81583862,1914.3,1914.2,9.34778728]
[1688312118901,0.31344,1914.3,1914.2,9.06668535]
[1688312119697,0.68403,1914.4,1914.3,5.0]
[1688312119993,0.97074635,1914.4,1914.3,8.22343]
[1688312120297,0.97074635,1914.4,1914.3,2.91]
[1688312120900,0.97074635,1914.4,1914.3,3.19671635]
[1688312121302,0.68403,1914.4,1914.3,3.19671635]
[1688312121702,0.68403,1914.4,1914.3,3.51015635]
[1688312121905,0.31342,1914.4,1914.3,6.71795635]
[1688312122200,0.31342,1914.4,1914.3,12.25458273]
[1688312123402,8.4464,1914.9,1914.6,5.0]
[1688312123403,6.07474,1914.9,1914.6,5.0]
[1688312123698,0.78349,1914.7,1914.6,8.52117]
[1688312124003,0.78349,1914.7,1914.6,8.19671635]
[1688312124709,0.15,1915.0,1914.8,5.0]
[1688312124917,3.2078,1915.5,1915.0,5.0]
[1688312124918,0.78323,1915.4,1915.0,5.0]
[1688312125213,0.78305,1915.7,1915.6,5.0]
[1688312125402,0.78309,1915.8,1915.6,6.72472635]
[1688312125613,0.78303,1915.9,1915.7,2.91]
[1688312125792,1.06974635,1915.9,1915.8,5.31318]
[1688312126010,1.06974635,1915.9,1915.8,13.88623089]
[1688312126203,4.27754635,1915.9,1915.7,2.92482942]
[1688312126392,0.31319,1915.8,1915.7,0.32103942]
[1688312126598,3.62499,1915.8,1915.7,0.00782942]
[1688312126805,3.52099,1915.8,1915.7,0.00782942]
[1688312127119,0.39071635,1915.7,1915.0,0.31329]
[1688312127302,0.31329,1915.2,1915.1,5.0]
[1688312127520,0.31329,1915.2,1915.1,11.30226115]
[1688312127700,0.31329,1915.2,1915.1,8.51002635]
[1688312127903,3.52109,1915.2,1915.0,0.42547454]
[1688312128105,0.31332,1915.0,1914.8,0.0078331]
[1688312128414,0.31332,1915.0,1914.9,2.91]
[1688312129001,0.31332,1915.0,1914.9,3.19110193]
[1688312129217,0.79113441,1915.1,1915.0,5.0]
[1688312129397,0.31327,1915.3,1915.2,5.0]
[1688312129605,8.1675,1915.9,1915.2,5.0]
[1688312129606,25.3608,1916.1,1915.6,5.0]
[1688312129808,0.93964,1915.9,1915.8,2.91]
[1688312130096,1.22635635,1915.9,1915.8,3.32865887]
[1688312130811,0.28671635,1915.9,1915.8,8.64184887]
[1688312131113,0.31318,1915.9,1915.8,14.15401706]
[1688312131405,2.16435795,1915.9,1915.8,7.929]
[1688312131614,5.37215795,1915.9,1915.8,5.0]
[1688312131808,2.16435795,1915.9,1915.8,5.0]
[1688312132505,2.16435795,1915.9,1915.7,2.91]
[1688312132702,2.17227022,1915.9,1915.8,5.0]
[1688312132901,2.17227022,1915.9,1915.7,2.91]
[1688312133101,4.08847412,1915.8,1915.7,2.91]
[1688312133309,5.48053755,1915.8,1915.7,2.91]
[1688312133709,5.4883889,1915.8,1915.7,2.91]
[1688312134204,5.4883889,1915.8,1915.7,2.917]
[1688312134603,5.4883889,1915.8,1915.6,5.0]
[1688312134799,2.2805889,1915.8,1915.7,4.594]
[1688312135003,2.2805889,1915.8,1915.7,4.90721]
[1688312135004,1.71310478,1915.8,1915.7,4.90721]
[1688312135203,1.71310478,1915.8,1915.7,10.43124973]
[1688312135403,1.71310478,1915.8,1915.7,13.63904973]
[1688312135404,1.39991478,1915.8,1915.7,13.63904973]
[1688312135603,1.71310478,1915.8,1915.7,13.63904973]
[1688312136008,1.69494047,1915.8,1915.7,10.43124973]
[1688312136708,1.98165682,1915.8,1915.7,10.43124973]
[1688312137013,1.69494047,1915.8,1915.7,10.43124973]
[1688312137209,1.98165682,1915.8,1915.7,10.43124973]
[1688312137405,1.98165682,1915.8,1915.7,4.594]
[1688312137612,1.69494047,1915.8,1915.7,5.32836828]
[1688312138205,1.28185047,1915.8,1915.7,11.00769146]
[1688312138413,1.28185047,1915.8,1915.7,14.21549146]
[1688312138806,0.58298,1916.0,1915.8,5.59429193]
[1688312139009,0.93957,1916.1,1916.0,5.31316]
[1688312139307,0.93957,1916.1,1916.0,5.61302917]
[1688312139705,0.94657309,1916.1,1916.0,5.61302917]
[1688312139909,0.00707309,1916.1,1916.0,5.61302917]
[1688312140113,0.93943,1916.3,1916.2,5.0]
[1688312140311,0.93943,1916.3,1916.2,10.18823193]
[1688312140611,0.93933,1916.5,1916.4,5.0]
[1688312140812,0.93933,1916.5,1916.4,5.31309]
[1688312141112,0.93933,1916.5,1916.4,10.66197389]
[1688312141310,1.22604635,1916.5,1916.4,10.66197389]
[1688312141512,0.93933,1916.5,1916.4,10.66197389]
[1688312141718,0.93933,1916.5,1916.4,10.94307582]
[1688312142615,1.22604635,1916.5,1916.4,5.0]
[1688312142914,1.22604635,1916.5,1916.4,9.594]
[1688312143111,1.22604635,1916.5,1916.2,9.594]
[1688312143317,3.52091,1916.3,1916.2,9.594]
[1688312143513,3.80762635,1916.3,1916.0,5.0]
[1688312143705,0.31314,1916.1,1915.9,4.60182861]
[1688312143910,0.31314,1916.1,1916.0,9.561]
[1688312144413,0.31314,1916.1,1916.0,15.15431924]
[1688312145535,0.63943141,1916.3,1916.2,5.0]
[1688312145718,0.63943141,1916.3,1916.2,9.90712]
[1688312145911,0.63943141,1916.3,1916.2,15.41088939]
[1688312146117,0.92614776,1916.3,1916.2,10.50376939]
[1688312146315,0.92614776,1916.3,1916.2,9.594]
[1688312146316,2.25780851,1916.3,1916.2,9.594]
[1688312146716,2.26456024,1916.3,1916.2,9.594]
[1688312147413,1.97784389,1916.3,1916.2,9.594]
[1688312147926,1.97784389,1916.3,1916.2,15.719369]
[1688312148921,2.26456024,1916.3,1916.2,15.406239]
[1688312149220,1.97784389,1916.3,1916.2,15.719359]
[1688312149821,2.26456024,1916.3,1916.2,16.14721979]
[1688312150112,2.26456024,1916.3,1916.2,15.83409979]
[1688312150520,1.97784389,1916.3,1916.2,16.14721979]
[1688312151118,5.47236024,1916.3,1916.2,15.83409979]
[1688312151315,5.18564389,1916.3,1916.2,15.83409979]
[1688312152322,1.97784389,1916.3,1916.2,16.14721979]
[1688312154925,1.85281377,1916.3,1916.2,16.14721979]
[1688312155726,0.78283,1916.5,1916.4,5.0]
[1688312155920,0.78266,1916.8,1916.7,5.0]
[1688312156121,0.78266,1916.8,1916.7,9.87403]
[1688312156721,1.07537397,1916.8,1916.7,9.561]
[1688312157415,4.28317397,1916.8,1916.7,9.561]
[1688312157821,0.78865762,1916.8,1916.7,9.87404]
[1688312158027,1.07537397,1916.8,1916.7,9.87404]
[1688312158438,0.31901762,1916.8,1916.7,9.87404]
[1688312159232,0.31901762,1916.8,1916.7,15.47504758]
[1688312160626,0.15,1917.0,1916.9,5.0]
[1688312160830,0.463,1917.0,1916.9,17.94891193]
[1688312161127,1.53977791,1917.0,1916.9,23.54557399]
[1688312161726,1.23190203,1917.0,1916.9,23.54557399]
[1688312161923,1.11956749,1917.0,1916.9,23.54557399]
[1688312162131,0.93887,1917.5,1917.4,5.0]
[1688312162326,0.7823,1917.6,1917.5,4.584]
[1688312162629,0.7823,1917.6,1917.5,5.34672871]
[1688312162835,0.3129,1917.7,1917.6,5.0]
[1688312163019,0.93871,1917.9,1917.8,5.31287]
[1688312163224,0.93871,1917.9,1917.8,9.90687]
[1688312163531,2.08342687,1917.9,1917.8,16.07374505]
[1688312163827,2.37453216,1917.9,1917.8,15.79264312]
[1688312164226,2.08781581,1917.9,1917.8,15.79264312]
[1688312164530,0.93855,1918.1,1918.0,5.0]
[1688312164725,0.93855,1918.1,1918.0,10.18793193]
[1688312164925,0.93837,1918.3,1918.2,5.0]
[1688312165128,0.93837,1918.3,1918.2,9.90678]
[1688312165429,0.31277,1918.4,1918.2,10.23016759]
[1688312166131,3.80728635,1918.4,1918.2,9.594]
[1688312166333,3.91128635,1918.4,1918.2,9.594]
[1688312166538,0.56748412,1918.3,1918.2,9.594]
[1688312166726,0.31278,1918.3,1918.2,9.594]
[1688312166930,0.31278,1918.3,1918.2,15.33529275]
[1688312168231,0.31278,1918.3,1918.2,15.02249275]
[1688312168831,0.31278,1918.3,1918.2,15.33529275]
[1688312169235,0.78197,1918.4,1918.2,15.59595275]
[1688312169549,0.782,1918.5,1918.4,5.0]
[1688312169736,0.78196,1918.5,1918.4,9.90677]
[1688312169931,0.93823,1918.7,1918.6,5.0]
[1688312170229,0.93823,1918.7,1918.6,14.50074]
[1688312170533,0.93823,1918.7,1918.6,14.83396567]
[1688312170724,0.93823,1918.7,1918.6,14.52122567]
[1688312170927,1.22494635,1918.7,1918.6,9.594]
[1688312171242,2.44234082,1918.7,1918.6,9.594]
[1688312171640,2.15991796,1918.7,1918.6,9.594]
[1688312172240,2.44663431,1918.7,1918.6,9.594]
[1688312172534,2.15991796,1918.7,1918.6,9.594]
[1688312172734,2.44663431,1918.7,1918.6,9.594]
[1688312173736,2.44663431,1918.7,1918.4,0.41055064]
[1688312173931,3.2078,1918.5,1918.3,0.00781861]
[1688312174233,0.59948635,1918.4,1918.3,0.00781861]
[1688312174440,1.59495217,1918.4,1918.3,4.60181861]
[1688312174740,2.16668821,1918.4,1918.3,9.75635288]
[1688312174937,2.27068821,1918.4,1918.3,4.60181861]
[1688312176333,2.27068821,1918.4,1917.6,5.80989]
[1688312176536,3.2078,1917.9,1917.6,5.18409]
[1688312176734,0.31287,1917.8,1917.6,5.18409]
[1688312176940,1.26796996,1917.8,1917.7,4.594]
[1688312177134,1.55468631,1917.8,1917.7,4.594]
[1688312177339,1.26796996,1917.8,1917.7,4.594]
[1688312177850,1.26796996,1917.8,1917.7,4.90688]
[1688312178144,1.26796996,1917.8,1917.7,10.82971945]
[1688312178543,1.26796996,1917.8,1917.7,15.82971945]
[1688312178840,0.85296532,1917.8,1917.7,16.09043945]
[1688312179037,1.16583532,1917.8,1917.7,16.09043945]
[1688312179348,1.12235085,1917.8,1917.7,20.68343945]
[1688312179742,0.70155873,1917.8,1917.7,20.68343945]
[1688312179939,1.22645832,1917.8,1917.7,16.08943945]
[1688312180344,1.0426,1918.4,1918.2,5.0]
[1688312180540,1.32931635,1918.4,1918.3,4.594]
[1688312180842,4.39541639,1918.4,1918.3,4.594]
[1688312181447,4.29141639,1918.4,1918.3,4.594]
[1688312181645,4.39541639,1918.4,1918.3,4.594]
[1688312182043,4.39541639,1918.4,1918.2,9.594]
[1688312182240,0.56748412,1918.3,1918.2,9.594]